bitfinex-derivatives/quotes_BNBF0:USTF0_20250715
["timestamp","ask_amount","ask_price","bid_price","bid_amount"]
[1752560670438,1.109952,682.18,681.18,0.25520026]
[1752560670638,1.109952,682.17,681.18,0.25520026]
[1752560670934,1.109952,682.16,681.18,0.25520026]
[1752560671139,0.98924025,681.72,681.18,0.25520026]
[1752560671339,0.98924025,681.75,681.18,0.25520026]
[1752560672037,0.98924025,681.71,681.18,0.25520026]
[1752560673139,0.98924025,681.72,681.18,0.25520026]
[1752560673335,0.98924025,681.71,681.18,0.25520026]
[1752560673633,0.98924025,681.69,681.18,0.25520026]
[1752560674235,0.98924025,681.61,680.95,0.98807711]
[1752560674537,0.98924025,681.6,681.07,0.25532758]
[1752560674739,0.98924025,681.53,681.07,0.25532758]
[1752560675038,0.25523956,682.24,681.07,0.25532758]
[1752560675039,0.98924025,681.47,681.07,0.25532758]
[1752560675240,0.98924025,681.56,681.07,0.25532758]
[1752560675440,0.98924025,681.58,681.07,0.25532758]
[1752560676035,0.98924025,681.57,681.07,0.25532758]
[1752560676235,0.98924025,681.58,681.07,0.25532758]
[1752560676438,0.98924025,681.59,681.07,0.25532758]
[1752560678134,0.98924025,681.6,681.07,0.25532758]
[1752560679341,0.98924025,681.61,681.07,0.25532758]
[1752560680936,0.98924025,681.62,681.07,0.25532758]
[1752560681141,0.98924025,681.61,680.79,0.98807711]
[1752560681344,0.98924025,681.61,680.99,0.2553613]
[1752560681544,0.98924025,681.5,680.99,0.2553613]
[1752560681743,0.98924025,681.48,680.99,0.2553613]
[1752560682245,0.98924025,681.49,680.99,0.2553613]
[1752560682444,0.98924025,681.48,680.99,0.2553613]
[1752560682943,0.98924025,681.45,680.99,0.2553613]
[1752560683239,0.98924025,681.46,680.99,0.2553613]
[1752560683439,0.98924025,681.45,680.99,0.2553613]
[1752560684141,0.98924025,681.46,680.99,0.2553613]
[1752560684444,1.318987,681.6,680.99,0.2553613]
[1752560684641,0.98388196,681.47,680.99,0.2553613]
[1752560685442,0.98388196,681.48,680.99,0.2553613]
[1752560686141,1.318987,681.62,680.99,0.2553613]
[1752560686142,0.98388196,681.49,680.99,0.2553613]
[1752560686941,0.98388196,681.48,680.99,0.2553613]
[1752560687142,0.98388196,681.49,680.99,0.2553613]
[1752560689145,0.98388196,681.5,680.99,0.2553613]
[1752560690143,0.98388196,681.51,680.99,0.2553613]
[1752560690744,0.98388196,681.52,680.99,0.2553613]
[1752560691144,0.98388196,681.53,680.99,0.2553613]
[1752560692947,0.98388196,681.56,680.99,0.2553613]
[1752560693147,1.1023445,681.55,680.99,0.2553613]
[1752560693345,0.98388196,681.57,680.99,0.2553613]
[1752560693548,1.1021676,681.56,680.99,0.2553613]
[1752560694049,2.08604956,681.56,680.99,0.2553613]
[1752560694348,0.98388196,681.56,680.99,0.2553613]
[1752560695850,0.98388196,681.58,680.99,0.2553613]
[1752560696050,1.1018643,681.57,680.99,0.2553613]
[1752560696750,0.98388196,681.58,680.99,0.2553613]
[1752560698347,0.98388196,681.57,680.99,0.2553613]
[1752560698946,0.98388196,681.56,680.99,0.2553613]
[1752560699145,0.98388196,681.53,680.99,0.2553613]
[1752560699546,0.98388196,681.54,680.99,0.2553613]
[1752560700546,0.98388196,681.52,680.99,0.2553613]
[1752560701553,0.98388196,681.55,680.99,0.2553613]
[1752560702453,0.98388196,681.53,680.99,0.2553613]
[1752560703152,0.98388196,681.52,680.99,0.2553613]
[1752560703850,0.98388196,681.53,680.99,0.2553613]
[1752560707957,0.98388196,681.54,680.99,0.2553613]
[1752560708360,2.08546046,681.53,680.99,0.2553613]
[1752560708562,0.98388196,681.53,680.99,0.2553613]
[1752560709467,1.9784805,681.82,680.99,0.2553613]
[1752560709468,0.98388196,681.54,680.99,0.2553613]
[1752560709767,2.08548346,681.53,680.99,0.2553613]
[1752560709964,0.98388196,681.53,680.99,0.2553613]
[1752560710470,0.98388196,681.54,680.99,0.2553613]
[1752560710766,0.98388196,681.56,680.99,0.2553613]
[1752560711373,1.1016987,681.55,680.99,0.2553613]
[1752560711668,0.98388196,681.54,680.99,0.2553613]
[1752560711865,1.9784805,681.81,680.99,0.2553613]
[1752560711866,0.98388196,681.58,680.99,0.2553613]
[1752560712070,1.1016909,681.57,680.99,0.2553613]
[1752560712271,2.08557286,681.57,680.99,0.2553613]
[1752560712467,0.98388196,681.57,680.99,0.2553613]
[1752560713373,0.98388196,681.56,680.99,0.2553613]
[1752560713873,0.98388196,681.61,680.99,0.2553613]
[1752560714274,0.98388196,681.6,680.99,0.2553613]
[1752560714574,0.98388196,681.65,680.99,0.2553613]
[1752560714774,0.98388196,681.64,680.99,0.2553613]
[1752560717071,0.98388196,681.67,680.99,0.2553613]
[1752560718171,0.98388196,681.66,680.99,0.2553613]
[1752560719371,0.98388196,681.65,680.99,0.2553613]
[1752560720470,0.98388196,681.68,680.99,0.2553613]
[1752560721277,1.9784805,681.97,680.99,0.2553613]
[1752560721278,0.98388196,681.67,680.99,0.2553613]
[1752560722374,0.98388196,681.69,680.99,0.2553613]
[1752560723180,0.98388196,681.68,680.99,0.2553613]
[1752560724280,0.98388196,681.67,680.99,0.2553613]
[1752560725282,0.98388196,681.66,680.99,0.2553613]
[1752560726278,0.98388196,681.65,680.99,0.2553613]
[1752560727078,0.25532571,681.96,680.99,0.2553613]
[1752560727079,0.98388196,681.64,680.99,0.2553613]
[1752560728284,0.98388196,681.63,680.99,0.2553613]
[1752560729284,0.98388196,681.62,680.99,0.2553613]
[1752560729984,0.98388196,681.61,680.99,0.2553613]
[1752560730186,0.98388196,681.59,680.99,0.2553613]
[1752560731983,0.98388196,681.58,680.99,0.2553613]
[1752560736691,0.98388196,681.6,680.99,0.2553613]
[1752560737187,0.98388196,681.61,680.99,0.2553613]
[1752560738888,0.98388196,681.6,680.99,0.2553613]
[1752560739187,0.98388196,681.62,680.99,0.2553613]
[1752560740491,0.98388196,681.61,680.99,0.2553613]
[1752560740788,0.98388196,681.59,680.99,0.2553613]
[1752560741186,0.98388196,681.56,680.99,0.2553613]
[1752560741890,0.98388196,681.57,680.99,0.2553613]
[1752560742389,0.98388196,681.59,680.99,0.2553613]
[1752560743496,0.98388196,681.62,680.99,0.2553613]
[1752560746597,0.98388196,681.61,680.99,0.2553613]
[1752560748694,1.318987,681.79,680.99,0.2553613]
[1752560748999,2.23380621,681.96,680.99,0.2553613]
[1752560749000,0.98547548,681.61,680.99,0.2553613]
[1752560750296,0.98547548,681.62,680.99,0.2553613]
[1752560752205,0.98547548,681.6,680.99,0.2553613]
[1752560753297,0.98547548,681.57,680.99,0.2553613]
[1752560755902,0.98547548,681.58,680.99,0.2553613]
[1752560756703,0.98547548,681.57,680.99,0.2553613]
[1752560757202,0.98547548,681.58,680.99,0.2553613]
[1752560758106,0.98547548,681.57,680.99,0.2553613]
[1752560758605,0.98547548,681.56,680.99,0.2553613]
[1752560760716,1.318987,681.7,680.99,0.2553613]
[1752560760910,0.25531259,682.03,680.99,0.2553613]
[1752560761110,1.1065259,682.02,680.99,0.2553613]
[1752560761311,1.1065259,682.01,680.99,0.2553613]
[1752560761509,1.1065259,682.0,680.99,0.2553613]
[1752560761707,1.1065259,681.99,680.99,0.2553613]
[1752560761908,1.1065259,681.98,680.99,0.2553613]
[1752560762107,1.1065259,681.97,680.99,0.2553613]
[1752560762412,1.1065259,681.96,680.99,0.2553613]
[1752560762610,1.1064995,681.95,680.99,0.2553613]
[1752560762810,0.98593122,681.68,681.01,0.9870548]
[1752560763213,0.98593122,681.68,681.02,0.9870548]
[1752560764216,0.98593122,681.67,681.02,0.9870548]
[1752560765714,0.98593122,681.67,681.03,0.9870548]
[1752560766212,0.25644899,682.13,681.03,0.9870548]
[1752560766213,0.98593122,681.66,681.03,0.9870548]
[1752560768223,0.98593122,681.65,681.04,0.9870548]
[1752560768623,1.3145749,681.81,681.04,0.9870548]
[1752560768624,0.98593122,681.66,681.04,0.9870548]
[1752560769425,0.98593122,681.65,681.04,0.9870548]
[1752560770225,0.98593122,681.64,681.05,0.9870548]
[1752560771626,0.98593122,681.63,681.06,0.9870548]
[1752560772223,0.98593122,681.61,681.08,0.9870548]
[1752560772725,0.98593122,681.6,681.08,0.9870548]
[1752560773025,0.98593122,681.61,681.08,0.9870548]
[1752560773224,0.98593122,681.6,681.09,0.9870548]
[1752560773528,0.98593122,681.6,681.08,0.9870548]
[1752560774324,0.98593122,681.63,681.12,0.9870548]
[1752560774527,0.98593122,681.64,681.12,0.9870548]
[1752560774723,0.98593122,681.63,681.12,0.9870548]
[1752560775228,0.98593122,681.64,681.12,0.9870548]
[1752560776230,0.98593122,681.64,681.11,0.9870548]
[1752560776531,0.98593122,681.63,681.12,0.9870548]
[1752560777330,0.98593122,681.64,681.11,0.9870548]
[1752560779433,0.98593122,681.66,681.1,0.9870548]
[1752560779631,0.98593122,681.66,681.11,0.9870548]
[1752560780233,0.98593122,681.67,681.1,0.9870548]
[1752560783240,0.98593122,681.68,681.09,0.9870548]
[1752560783440,0.25644899,682.13,681.1,0.9870548]
[1752560783441,0.98593122,681.67,681.1,0.9870548]
[1752560783837,0.98593122,681.68,681.11,0.9870548]
[1752560784037,0.98593122,681.68,681.1,0.9870548]
[1752560784736,0.98593122,681.7,681.09,0.9870548]
[1752560788043,0.98593122,681.71,681.08,0.9870548]
[1752560789142,0.98593122,681.7,681.09,0.9870548]
[1752560790244,0.98593122,681.7,681.08,0.9870548]
[1752560790944,0.98593122,681.7,681.09,0.9870548]
[1752560791244,0.98593122,681.7,681.08,0.9870548]
[1752560791542,0.98593122,681.71,681.08,0.9870548]
[1752560791848,0.98593122,681.71,680.99,0.2553613]
[1752560791849,0.98593122,681.73,681.06,0.9870548]
[1752560793344,0.98593122,681.74,681.06,0.9870548]
[1752560794646,0.98593122,681.73,681.06,0.9870548]
[1752560795453,0.98593122,681.74,681.05,0.9870548]
[1752560796754,0.98593122,681.69,681.0,0.9870548]
[1752560796955,0.98593122,681.65,680.99,0.2553613]
[1752560800955,0.98593122,681.62,680.99,0.2553613]
[1752560805154,0.98593122,681.59,680.99,1.2424161]
[1752560805355,0.98593122,681.57,681.01,0.9870548]
[1752560805556,0.98593122,681.6,680.99,1.2424161]
[1752560806058,0.98593122,681.6,680.99,0.2553613]
[1752560806258,0.98593122,681.61,680.99,0.2553613]
[1752560806755,0.25644899,682.13,680.99,0.2553613]
[1752560806756,0.98593122,681.57,680.99,0.2553613]
[1752560807061,0.98593122,681.56,680.99,0.2553613]
[1752560807258,0.98593122,681.54,680.99,0.2553613]
[1752560809162,1.3145749,681.69,680.99,0.2553613]
[1752560809362,0.98662765,681.54,680.99,0.2553613]
[1752560813162,0.98662765,681.52,680.99,0.2553613]
[1752560814366,0.98662765,681.51,680.99,0.2553613]
[1752560816367,0.98662765,681.48,680.99,0.2553613]
[1752560816866,0.98662765,681.49,680.99,0.2553613]
[1752560818169,0.98662765,681.48,680.99,0.2553613]
[1752560820672,0.98662765,681.5,680.99,0.2553613]
[1752560823473,0.98662765,681.52,680.99,0.2553613]
[1752560825282,0.98662765,681.54,680.99,0.2553613]
[1752560825482,0.98662765,681.5,680.99,0.2553613]
[1752560828186,0.98662765,681.51,680.99,0.2553613]
[1752560829290,0.98662765,681.52,680.99,0.2553613]
[1752560830589,0.98662765,681.53,680.99,0.2553613]
[1752560832296,0.98573039,681.53,680.99,0.2553613]
[1752560832603,0.985728,681.53,680.99,0.2553613]
[1752560833404,0.985728,681.52,680.99,0.2553613]
[1752560834197,0.985728,681.53,680.99,0.2553613]
[1752560835205,0.985728,681.51,680.99,0.2553613]
[1752560836400,0.985728,681.52,680.99,0.2553613]
[1752560840199,0.985728,681.5,680.99,0.2553613]
[1752560842409,0.98586279,681.5,680.99,0.2553613]
[1752560843303,0.98586279,681.51,680.99,0.2553613]
[1752560845107,0.98586279,681.5,680.99,0.2553613]
[1752560845503,0.98586279,681.52,680.99,0.2553613]
[1752560845904,0.98586279,681.54,680.99,0.2553613]
[1752560846306,0.98586279,681.5,680.99,0.2553613]
[1752560846601,0.98586279,681.49,680.99,0.2553613]
[1752560847105,0.98586279,681.5,680.99,0.2553613]
[1752560847301,1.3145749,681.66,680.99,0.2553613]
[1752560847302,0.98586279,681.49,680.99,0.2553613]
[1752560847802,0.98586279,681.5,680.8,0.98700327]
[1752560848102,0.98586279,681.5,680.89,0.25538941]
[1752560848602,0.98586279,681.44,680.89,0.25538941]
[1752560848904,0.98586279,681.42,680.89,0.25538941]
[1752560849103,0.98586279,681.41,680.89,0.25538941]
[1752560850006,0.98586279,681.4,680.89,0.25538941]
[1752560850206,0.98586279,681.39,680.89,0.25538941]
[1752560850404,0.98586279,681.4,680.89,0.25538941]
[1752560851208,0.98586279,681.39,680.89,0.25538941]
[1752560851506,0.98586279,681.37,680.89,0.25538941]
[1752560852409,0.98586279,681.34,680.89,0.25538941]
[1752560852706,0.98586279,681.29,680.89,0.25538941]
[1752560853209,0.98586279,681.3,680.89,0.25538941]
[1752560854210,0.98586279,681.29,680.89,0.25538941]
[1752560854405,0.98586279,681.3,680.89,0.25538941]
[1752560855210,0.98586279,681.31,680.89,0.25538941]
[1752560855709,0.98586279,681.31,680.63,0.98700327]
[1752560855908,0.98586279,681.31,680.81,0.25543909]
[1752560856210,0.98586279,681.3,680.81,0.25543909]
[1752560856510,0.98586279,681.31,680.62,0.98700327]
[1752560856713,0.98586279,681.31,680.77,0.25544847]
[1752560857412,0.98586279,681.32,680.77,0.25544847]
[1752560858510,0.98586279,681.33,680.77,0.25544847]
[1752560859012,0.98586279,681.32,680.77,0.25544847]
[1752560859209,0.98586279,681.33,680.77,0.25544847]
[1752560861112,0.98586279,681.31,680.77,0.25544847]
[1752560861515,0.98586279,681.3,680.77,0.25544847]
[1752560862611,0.98586279,681.25,680.77,0.25544847]
[1752560863214,1.3145749,681.38,680.77,0.25544847]
[1752560863215,0.98586279,681.24,680.77,0.25544847]
[1752560863413,1.3145749,681.38,680.77,0.25544847]
[1752560863414,0.98586279,681.25,680.77,0.25544847]
[1752560865211,0.98586279,681.26,680.77,0.25544847]
[1752560867216,0.98586279,681.23,680.77,0.25544847]
[1752560869113,0.98586279,681.24,680.77,0.25544847]
[1752560869319,0.98586279,681.25,680.51,0.98700327]
[1752560869617,0.98586279,681.52,680.68,0.25548128]
[1752560869816,1.1049372,681.51,680.68,0.25548128]
[1752560870018,0.98586279,681.52,680.68,0.25548128]
[1752560870319,0.98586279,681.48,680.68,0.25548128]
[1752560872220,1.1043582,681.47,680.68,0.25548128]
[1752560872422,1.1043582,681.46,680.68,0.25548128]
[1752560872618,1.1043582,681.45,680.68,0.25548128]
[1752560872816,0.98586279,681.4,680.68,0.25548128]
[1752560873019,2.09022099,681.39,680.68,0.25548128]
[1752560873217,0.98586279,681.39,680.68,0.25548128]
[1752560873416,0.98586279,681.4,680.68,0.25548128]
[1752560873621,1.1045661,681.39,680.68,0.25548128]
[1752560875019,2.09042889,681.39,680.68,0.25548128]
[1752560875218,1.1045661,681.38,680.68,0.25548128]
[1752560875822,0.98586279,681.35,680.68,0.25548128]
[1752560876222,0.98586279,681.36,680.68,0.25548128]
[1752560878126,0.98586279,681.35,680.68,0.25548128]
[1752560879226,1.1043385,681.34,680.68,0.25548128]
[1752560879421,0.98586279,681.25,680.68,0.25548128]
[1752560880421,0.98586279,681.24,680.68,0.25548128]
[1752560881924,0.98586279,681.23,680.68,0.25548128]
[1752560883325,0.98586279,681.22,680.68,0.25548128]
[1752560883625,0.98586279,681.21,680.68,0.25548128]
[1752560884832,0.98586279,681.2,680.68,0.25548128]
[1752560886033,0.25644899,682.13,680.68,0.25548128]
[1752560886034,0.98586279,681.18,680.68,0.25548128]
[1752560886832,0.98586279,681.17,680.68,0.25548128]
[1752560887535,0.98586279,681.18,680.68,0.25548128]
[1752560888036,0.98586279,681.17,680.68,0.25548128]
[1752560889933,0.98586279,681.14,680.68,0.25548128]
[1752560891137,0.98586279,681.2,680.68,0.25548128]
[1752560891535,0.98586279,681.19,680.68,0.25548128]
[1752560896245,0.98586279,681.18,680.68,0.25548128]
[1752560899247,0.98586279,681.17,680.68,0.25548128]
[1752560901141,0.98586279,681.11,680.68,0.25548128]
[1752560903344,0.98508822,681.1,680.68,0.25548128]
[1752560904443,0.98508822,681.09,680.68,0.25548128]
[1752560905148,0.98508822,681.1,680.68,0.25548128]
[1752560905349,0.98508822,681.09,680.68,0.25548128]
[1752560908251,0.98508822,681.08,680.68,0.25548128]
[1752560908856,0.98508822,681.11,680.68,0.25548128]
[1752560910253,0.98508822,681.1,680.68,0.25548128]
[1752560911060,0.98508822,681.09,680.68,0.25548128]
[1752560911257,0.98508822,681.11,680.68,0.25548128]
[1752560911559,0.98508822,681.1,680.68,0.25548128]
[1752560911859,0.98508822,681.11,680.68,0.25548128]
[1752560912460,0.98508822,681.1,680.68,0.25548128]
[1752560912660,1.3145749,681.26,680.68,0.25548128]
[1752560912661,0.98508822,681.11,680.68,0.25548128]
[1752560912960,0.98508822,681.1,680.68,0.25548128]
[1752560916465,0.98508822,681.09,680.68,0.25548128]
[1752560918765,0.98508822,681.07,680.68,0.25548128]
[1752560920266,0.98508822,681.06,680.68,0.25548128]
[1752560921070,0.98508822,681.05,680.68,0.25548128]
[1752560921272,0.98508822,681.04,680.68,0.25548128]
[1752560921772,0.98508822,681.03,680.68,0.25548128]
[1752560922271,0.98508822,681.02,680.68,0.25548128]
[1752560923369,0.98508822,681.01,680.68,0.25548128]
[1752560923768,0.98508822,681.02,680.68,0.25548128]
[1752560924275,0.98508822,681.01,680.68,0.25548128]
[1752560924470,0.98508822,681.02,680.68,0.25548128]
[1752560924972,0.98508822,681.01,680.68,0.25548128]
[1752560925775,0.98508822,681.0,680.68,0.25548128]
[1752560926371,0.98508822,680.99,680.68,0.25548128]
[1752560928177,0.98508822,680.98,680.68,0.25548128]
[1752560931178,0.98508822,680.99,680.68,0.25548128]
[1752560931377,1.9718624,681.23,680.68,0.25548128]
[1752560931378,0.98508822,680.98,680.68,0.25548128]
[1752560931577,1.3145749,681.1,680.68,0.25548128]
[1752560931578,0.98508822,680.99,680.68,0.25548128]
[1752560932174,0.98508822,681.09,680.68,0.25548128]
[1752560934278,0.98508822,681.13,680.68,0.25548128]
[1752560935687,0.98508822,681.16,680.68,0.25548128]
[1752560938382,0.98508822,681.14,680.68,0.25548128]
[1752560939087,0.98508822,681.11,680.68,0.25548128]
[1752560942094,0.98508822,681.12,680.68,0.25548128]
[1752560942294,0.98508822,681.11,680.68,0.25548128]
[1752560942495,0.98508822,681.12,680.68,0.25548128]
[1752560942694,0.98508822,681.11,680.68,0.25548128]
[1752560943094,0.98508822,681.12,680.68,0.25548128]
[1752560943497,0.98508822,681.07,680.68,0.25548128]
[1752560946098,0.98508822,681.08,680.68,0.25548128]
[1752560950299,0.98508822,681.09,680.68,0.25548128]
[1752560950697,0.98508822,681.08,680.68,0.25548128]
[1752560951101,1.3145749,681.23,680.68,0.25548128]
[1752560951102,0.98508822,681.09,680.68,0.25548128]
[1752560951502,0.98508822,681.1,680.68,0.25548128]
[1752560951700,0.98508822,681.09,680.68,0.25548128]
[1752560952001,0.98508822,681.1,680.68,0.25548128]
[1752560953401,0.98508822,681.09,680.68,0.25548128]
[1752560956004,0.98508822,681.08,680.68,0.25548128]
[1752560961210,0.98508822,681.06,680.68,0.25548128]
[1752560962009,0.98508822,681.04,680.68,0.25548128]
[1752560963309,0.98508822,681.05,680.68,0.25548128]
[1752560964608,0.98508822,681.04,680.68,0.25548128]
[1752560973420,0.98508822,681.03,680.68,0.25548128]
[1752560975019,0.98508822,681.04,680.68,0.25548128]
[1752560975717,0.98508822,681.03,680.68,0.25548128]
[1752560977821,0.98508822,681.04,680.68,0.25548128]
[1752560978319,0.98508822,681.03,680.68,0.25548128]
[1752560979422,1.3145749,681.15,680.68,0.25548128]
[1752560979620,0.98907984,681.03,680.68,0.25548128]
[1752560981623,0.98907984,681.04,680.68,0.25548128]
[1752560982023,0.98907984,681.06,680.68,0.25548128]
[1752560983736,0.98907984,681.08,680.68,0.25548128]
[1752560984531,0.98907984,681.11,680.68,0.25548128]
[1752560988334,0.98907984,681.1,680.68,0.25548128]
[1752560988540,0.98907984,681.11,680.68,0.25548128]
[1752560988741,0.98907984,681.1,680.68,0.25548128]
[1752560991837,0.98907984,681.09,680.68,0.25548128]
[1752560993441,0.98907984,681.07,680.68,0.25548128]
[1752560995644,0.98907984,681.06,680.68,0.25548128]
[1752560997249,0.98907984,681.07,680.68,0.25548128]
[1752560998046,0.98907984,681.24,680.68,0.25548128]
[1752561001753,0.98907984,681.25,680.68,0.25548128]
[1752561005452,0.98907984,681.21,680.68,0.25548128]
[1752561006558,1.1106065,681.2,680.68,0.25548128]
[1752561006751,0.98907984,681.07,680.68,0.25548128]
[1752561007355,0.98907984,681.08,680.68,0.25548128]
[1752561007552,0.98907984,681.1,680.68,0.25548128]
[1752561008057,0.98907984,681.08,680.68,0.25548128]
[1752561012556,0.98907984,681.07,680.68,0.25548128]
[1752561017158,0.98907984,681.08,680.68,0.25548128]
[1752561017364,0.98907984,681.04,680.68,0.25548128]
[1752561020561,0.98907984,681.12,680.68,0.25548128]
[1752561020758,0.98907984,681.18,680.7,0.99006382]
[1752561021464,0.98907984,681.19,680.69,0.99006382]
[1752561022265,0.98907984,681.2,680.69,0.99006382]
[1752561022560,0.98907984,681.2,680.68,1.2455451]
[1752561023466,0.98907984,681.18,680.7,0.99006382]
[1752561023761,0.98907984,681.23,680.75,0.99006382]
[1752561024363,0.98907984,681.24,680.74,0.99006382]
[1752561024765,0.9892941,681.24,680.74,0.98941356]
[1752561024962,0.9892941,681.23,680.74,0.98941356]
[1752561025365,0.9892941,681.24,680.74,0.98941356]
[1752561025664,0.9892941,681.24,680.73,0.98941356]
[1752561025865,0.9892941,681.22,680.75,0.98941356]
[1752561026062,0.9892941,681.21,680.76,0.98941356]
[1752561026365,0.9892941,681.22,680.75,0.98941356]
[1752561026565,0.9892941,681.21,680.75,0.98941356]
[1752561026765,0.9892941,681.22,680.75,0.98941356]
[1752561027363,0.9892941,681.21,680.75,0.98941356]
[1752561027563,1.9718624,681.45,680.68,0.25548128]
[1752561027564,0.9892941,681.23,680.76,0.98941356]
[1752561027765,0.9892941,681.25,680.76,0.98941356]
[1752561027962,0.9892941,681.27,680.78,0.98941356]
[1752561028261,0.9892941,681.28,680.78,0.98941356]
[1752561028469,0.25540347,681.76,680.68,0.25548128]
[1752561028470,0.9892941,681.27,680.79,0.98941356]
[1752561028663,0.9892941,681.31,680.81,0.98941356]
[1752561029265,0.9892941,681.32,680.8,0.98941356]
[1752561029970,0.9892941,681.33,680.8,0.98941356]
[1752561030463,0.9892941,681.33,680.79,0.98941356]
[1752561030869,0.9892941,681.32,680.8,0.98941356]
[1752561031366,0.9892941,681.33,680.79,0.98941356]
[1752561031965,0.9892941,681.34,680.79,0.98941356]
[1752561032269,0.9892941,681.34,680.78,0.98941356]
[1752561033172,0.9892941,681.36,680.77,0.98941356]
[1752561033372,0.9892941,681.38,680.75,0.98941356]
[1752561033672,0.9892941,681.39,680.75,0.98941356]
[1752561034273,0.9892941,681.4,680.74,0.98941356]
[1752561034974,0.9892941,681.38,680.76,0.98941356]
[1752561035175,0.9892941,681.38,680.75,0.98941356]
[1752561036475,0.9892941,681.39,680.75,0.98941356]
[1752561037277,0.9892941,681.39,680.74,0.98941356]
[1752561039875,0.9892941,681.4,680.73,0.98941356]
[1752561041781,0.9892941,681.4,680.74,0.98941356]
[1752561041982,0.9892941,681.42,680.74,0.98941356]
[1752561042278,0.9892941,681.42,680.68,0.25548128]
[1752561042279,0.9892941,681.42,680.73,0.98941356]
[1752561042479,0.9892941,681.43,680.73,0.98941356]
[1752561044182,0.9892941,681.42,680.74,0.98941356]
[1752561045383,0.9892941,681.42,680.73,0.98941356]
[1752561045783,0.9892941,681.42,680.74,0.98941356]
[1752561045980,0.9892941,681.42,680.73,0.98941356]
[1752561046180,0.9892941,681.43,680.74,0.98941356]
[1752561046487,0.9892941,681.43,680.73,0.98941356]
[1752561046685,0.9892941,681.47,680.77,0.98941356]
[1752561047282,0.9892941,681.48,680.77,0.98941356]
[1752561048281,0.9892941,681.48,680.76,0.98941356]
[1752561048485,0.9892941,681.48,680.77,0.98941356]
[1752561048684,0.9892941,681.48,680.76,0.98941356]
[1752561049785,0.9892941,681.47,680.77,0.98941356]
[1752561050184,0.9892941,681.47,680.76,0.98941356]
[1752561050389,0.9892941,681.48,680.76,0.98941356]
[1752561051388,0.9892941,681.49,680.75,0.98941356]
[1752561052195,0.9892941,681.5,680.75,0.98941356]
[1752561053492,0.9892941,681.49,680.76,0.98941356]
[1752561054693,1.3145749,681.62,680.68,0.25548128]
[1752561054893,0.98539888,681.49,680.76,0.98538758]
[1752561055296,0.98539888,681.49,680.75,0.98538758]
[1752561060596,0.98539888,681.49,680.74,0.98538758]
[1752561061099,0.98539888,681.48,680.74,0.98538758]
[1752561061302,0.98539888,681.46,680.75,0.98538758]
[1752561063207,0.98539888,681.4,680.69,0.98538758]
[1752561063706,0.25537723,681.82,680.68,0.25548128]
[1752561063707,0.98539888,681.37,680.68,0.25548128]
[1752561067205,0.98539888,681.36,680.68,0.25548128]
[1752561067402,0.98539888,681.37,680.68,0.25548128]
[1752561067705,0.98539888,681.36,680.68,1.24086886]
[1752561067905,0.98539888,681.37,680.68,1.24086886]
[1752561068306,0.98539888,681.36,680.68,1.24086886]
[1752561068510,0.98539888,681.37,680.68,0.25548128]
[1752561069116,0.98539888,681.36,680.68,0.25548128]
[1752561069304,0.98539888,681.34,680.68,0.25548128]
[1752561069513,0.98539888,681.35,680.68,0.25548128]
[1752561069714,0.98539888,681.35,680.67,0.98538758]
[1752561070008,0.98539888,681.35,680.74,0.25541378]
[1752561070208,0.98539888,681.34,680.74,0.25541378]
[1752561072304,0.98539888,681.33,680.74,0.25541378]
[1752561074210,0.98539888,681.32,680.74,0.25541378]
[1752561074506,0.98539888,681.33,680.74,0.25541378]
[1752561074710,0.98539888,681.32,680.74,0.25541378]
[1752561075509,0.98539888,681.31,680.74,0.25541378]
[1752561075707,0.98539888,681.32,680.74,0.25541378]
[1752561076207,0.98539888,681.31,680.74,0.25541378]
[1752561077011,0.98539888,681.34,680.74,0.25541378]
[1752561077208,0.98539888,681.33,680.74,0.25541378]
[1752561078312,0.98539888,681.32,680.74,0.25541378]
[1752561079412,0.98539888,681.31,680.74,0.25541378]
[1752561080412,0.98539888,681.3,680.74,1.24080136]
[1752561082016,1.9718624,681.58,680.74,1.24080136]
[1752561082017,0.98539888,681.36,680.74,0.25541378]
[1752561082217,0.98539888,681.35,680.74,0.25541378]
[1752561086027,0.98539888,681.34,680.74,0.25541378]
[1752561091026,0.98539888,681.35,680.74,0.25541378]
[1752561091826,0.98539888,681.31,680.74,1.24080136]
[1752561095225,0.98539888,681.32,680.74,1.24080136]
[1752561095429,0.98539888,681.36,680.77,0.98538758]
[1752561100230,0.98539888,681.35,680.76,0.98538758]
[1752561100630,0.98539888,681.36,680.76,0.98538758]
[1752561100930,0.98539888,681.33,680.75,0.98538758]
[1752561101436,0.98539888,681.34,680.74,1.24080136]
[1752561101836,0.98830205,681.34,680.74,1.24406556]
[1752561103237,0.98830205,681.34,680.75,0.98865178]
[1752561104435,0.98830205,681.33,680.75,0.98865178]
[1752561107833,0.98830205,681.31,680.76,0.98865178]
[1752561108936,0.98830205,681.31,680.75,0.98865178]
[1752561109140,0.98830205,681.25,680.74,0.25541378]
[1752561110240,0.98830205,681.24,680.74,0.25541378]
[1752561111241,0.98830205,681.23,680.74,0.25541378]
[1752561111438,0.98830205,681.22,680.74,0.25541378]
[1752561111936,0.98830205,681.21,680.74,0.25541378]
[1752561112139,0.98830205,681.23,680.74,0.25541378]
[1752561112637,0.98830205,681.22,680.74,0.25541378]